fUST/lending_fUST_20250626
["ID","MTS","AMOUNT","RATE_DAILY","PERIOD"]
[367600039,1750869046786,-775.28,0.00016986,2]
[367600041,1750869046795,-460.0,0.00016986,2]
[367600044,1750869046804,-460.0,0.00016986,2]
[367600047,1750869046813,-312.79,0.00016986,2]
[367600049,1750869046822,-839.84,0.00016986,2]
[367600051,1750869046831,-1467.67,0.00016986,2]
[367600053,1750869046842,-279.12990826,0.00016986,2]
[367600055,1750869046852,-460.0,0.00016986,2]
[367600057,1750869046861,-906.85,0.00016986,2]
[367600059,1750869046870,-460.0,0.00016986,2]
[367600061,1750869046879,-460.0,0.00016986,2]
[367600063,1750869046888,-1612.36,0.00016986,2]
[367600065,1750869046897,-895.36,0.00016986,2]
[367600067,1750869046906,-460.0,0.00016986,2]
[367600069,1750869046915,-802.68,0.00016986,2]
[367600070,1750869046924,-543.7,0.00016986,2]
[367600072,1750869046933,-460.0,0.00016986,2]
[367600074,1750869046943,-460.0,0.00016986,2]
[367600076,1750869046952,-460.0,0.00016986,2]
[367600078,1750869046961,-1353.11,0.00016986,2]
[367600080,1750869046970,-460.0,0.00016986,2]
[367600082,1750869046979,-460.0,0.00016986,2]
[367600084,1750869046988,-460.0,0.00016986,2]
[367600086,1750869046998,-460.0,0.00016986,2]
[367600088,1750869047008,-1226.09,0.00016986,2]
[367600090,1750869047016,-3375.34,0.00016986,2]
[367600092,1750869047026,-460.0,0.00016986,2]
[367600094,1750869047035,-383.80211462,0.00016986,2]
[367600096,1750869047044,-827.67,0.00016986,2]
[367600098,1750869047053,-460.0,0.00016986,2]
[367600100,1750869047062,-2867.33,0.00016986,2]
[367600102,1750869047072,-690.95,0.00016986,2]
[367600104,1750869047082,-460.0,0.00016986,2]
[367600106,1750869047091,-460.0,0.00016986,2]
[367600108,1750869047100,-460.0,0.00016986,2]
[367600110,1750869047110,-457.79445182,0.00016986,2]
[367600112,1750869047120,-941.19,0.00016986,2]
[367600114,1750869047130,-460.0,0.00016986,2]
[367600116,1750869047139,-464.38,0.00016986,2]
[367600118,1750869047148,-460.0,0.00016986,2]
[367600120,1750869047157,-460.0,0.00016986,2]
[367600122,1750869047166,-460.0,0.00016986,2]
[367600124,1750869047176,-460.0,0.00016986,2]
[367600126,1750869047186,-460.0,0.00016986,2]
[367600128,1750869047195,-1086.55,0.00016986,2]
[367600129,1750869047204,-460.0,0.00016986,2]
[367600130,1750869047213,-460.0,0.00016986,2]
[367600131,1750869047222,-1783.95,0.00016986,2]
[367600132,1750869047231,-460.0,0.00016986,2]
[367600133,1750869047241,-561.96,0.00016986,2]
[367600134,1750869047251,-460.0,0.00016986,2]
[367600135,1750869047260,-460.0,0.00016986,2]
[367600136,1750869047269,-460.0,0.00016986,2]
[367600137,1750869047278,-2885.03,0.00016986,2]
[367600138,1750869047287,-961.05,0.00016986,2]
[367600139,1750869047297,-466.03,0.00016986,2]
[367600140,1750869047306,-460.0,0.00016986,2]
[367600141,1750869047315,-460.0,0.00016986,2]
[367600142,1750869047324,-500.0,0.00017055,2]
[367600143,1750869047335,-500.0,0.00017055,2]
[367600144,1750869047345,-500.0,0.00017068,2]
[367600145,1750869047354,-500.0,0.00017068,2]
[367600146,1750869047363,-500.0,0.00017068,2]
[367600147,1750869047372,-506.96582777,0.00017068,2]
[367600148,1750869047381,-413.91425049,0.00017068,2]
[367600149,1750869047391,-500.0,0.00017079,2]
[367600150,1750869047400,-207.4,0.00017125,2]
[367600151,1750869047409,-500.0,0.00017205,2]
[367600153,1750869047418,-500.0,0.00017217,2]
[367600154,1750869047428,-337.0,0.00017218,2]
[367600156,1750869047437,-320.01457992,0.00017258,2]
[367600158,1750869047446,-500.0,0.00017259,2]
[367600160,1750869047456,-460.0,0.0001726,2]
[367600162,1750869047465,-460.0,0.0001726,2]
[367600164,1750869047475,-460.0,0.0001726,2]
[367600166,1750869047484,-151.0,0.0001726,2]
[367600168,1750869047494,-460.0,0.0001726,2]
[367600170,1750869047504,-460.0,0.0001726,2]
[367600172,1750869047514,-460.0,0.0001726,2]
[367600174,1750869047524,-460.0,0.0001726,2]
[367600176,1750869047533,-460.0,0.0001726,2]
[367600178,1750869047542,-460.0,0.0001726,2]
[367600180,1750869047552,-460.0,0.0001726,2]
[367600182,1750869047562,-460.0,0.0001726,2]
[367600184,1750869047571,-479.16124575,0.0001726,2]
[367600186,1750869047580,-460.0,0.0001726,2]
[367600188,1750869047590,-460.0,0.0001726,2]
[367600190,1750869047599,-553.87,0.0001726,2]
[367600192,1750869047608,-460.0,0.0001726,2]
[367600194,1750869047617,-460.0,0.0001726,2]
[367600196,1750869047627,-460.0,0.0001726,2]
[367600198,1750869047636,-460.0,0.0001726,2]
[367600200,1750869047645,-460.0,0.0001726,2]
[367600202,1750869047655,-460.0,0.0001726,2]
[367600204,1750869047664,-460.0,0.0001726,2]
[367600206,1750869047674,-460.0,0.0001726,2]
[367600208,1750869047683,-789.26,0.0001726,2]
[367600210,1750869047694,-555.96,0.0001726,2]
[367600212,1750869047703,-460.0,0.0001726,2]
[367600214,1750869047712,-544.38,0.0001726,2]
[367600216,1750869047721,-460.0,0.0001726,2]
[367600218,1750869047731,-460.0,0.0001726,2]
[367600220,1750869047740,-198.33624572,0.0001726,2]
[367600222,1750869047749,-460.0,0.0001726,2]
[367600223,1750869047762,-460.0,0.0001726,2]
[367600225,1750869047771,-460.0,0.0001726,2]
[367600227,1750869047781,-460.0,0.0001726,2]
[367600229,1750869047790,-460.0,0.0001726,2]
[367600231,1750869047800,-616.1,0.0001726,2]
[367600233,1750869047812,-460.0,0.0001726,2]
[367600235,1750869047821,-460.0,0.0001726,2]
[367600237,1750869047830,-460.0,0.0001726,2]
[367600239,1750869047840,-3865.86,0.0001726,2]
[367600241,1750869047850,-460.0,0.0001726,2]
[367600243,1750869047860,-606.89,0.0001726,2]
[367600246,1750869047871,-4605.28,0.0001726,2]
[367600247,1750869047880,-460.0,0.0001726,2]
[367600250,1750869047891,-460.0,0.0001726,2]
[367600252,1750869047902,-4347.37,0.0001726,2]
[367600254,1750869047911,-1034.42,0.0001726,2]
[367600256,1750869047921,-460.0,0.0001726,2]
[367600258,1750869047931,-1607.52,0.0001726,2]
[367600260,1750869047940,-4643.28,0.0001726,2]
[367600262,1750869047950,-1172.11,0.0001726,2]
[367600264,1750869047959,-679.18,0.0001726,2]
[367600265,1750869047968,-460.0,0.0001726,2]
[367600267,1750869047978,-758.82,0.0001726,2]
[367600269,1750869047988,-363.82,0.0001726,2]
[367600271,1750869047997,-404.20560324,0.0001726,2]
[367600273,1750869048009,-608.06,0.0001726,2]
[367600275,1750869048018,-460.0,0.0001726,2]
[367600278,1750869048028,-460.0,0.0001726,2]
[367600279,1750869048038,-2453.04,0.0001726,2]
[367600281,1750869048048,-460.0,0.0001726,2]
[367600283,1750869048058,-973.42,0.0001726,2]
[367600285,1750869048068,-1249.98,0.0001726,2]
[367600287,1750869048078,-556.18,0.0001726,2]
[367600289,1750869048088,-3350.28,0.0001726,2]
[367600291,1750869048098,-460.0,0.0001726,2]
[367600293,1750869048108,-460.0,0.0001726,2]
[367600295,1750869048118,-500.78,0.0001726,2]
[367600297,1750869048127,-460.0,0.0001726,2]
[367600299,1750869048138,-460.0,0.0001726,2]
[367600301,1750869048149,-460.0,0.0001726,2]
[367600303,1750869048160,-460.0,0.0001726,2]
[367600305,1750869048171,-695.92,0.0001726,2]
[367600307,1750869048181,-2222.53,0.0001726,2]
[367600309,1750869048190,-460.0,0.0001726,2]
[367600311,1750869048200,-977.75,0.0001726,2]
[367600313,1750869048210,-1334.59,0.0001726,2]
[367600315,1750869048220,-546.87,0.0001726,2]
[367600317,1750869048229,-775.28,0.0001726,2]
[367600319,1750869048239,-460.0,0.0001726,2]
[367600321,1750869048248,-460.0,0.0001726,2]
[367600323,1750869048259,-839.84,0.0001726,2]
[367600326,1750869048278,-1467.67,0.0001726,2]
[367600328,1750869048288,-485.2,0.0001726,2]
[367600330,1750869048298,-906.85,0.0001726,2]
[367600332,1750869048307,-460.0,0.0001726,2]
[367600334,1750869048317,-1612.36,0.0001726,2]
[367600336,1750869048327,-895.36,0.0001726,2]
[367600338,1750869048340,-460.0,0.0001726,2]
[367600340,1750869048350,-802.68,0.0001726,2]
[367600342,1750869048360,-543.7,0.0001726,2]
[367600344,1750869048370,-460.0,0.0001726,2]
[367600347,1750869048381,-460.0,0.0001726,2]
[367600349,1750869048393,-1353.11,0.0001726,2]
[367600351,1750869048403,-460.0,0.0001726,2]
[367600352,1750869048416,-460.0,0.0001726,2]
[367600355,1750869048426,-460.0,0.0001726,2]
[367600356,1750869048436,-1226.09,0.0001726,2]
[367600358,1750869048445,-3375.34,0.0001726,2]
[367600360,1750869048455,-460.0,0.0001726,2]
[367600362,1750869048464,-827.67,0.0001726,2]
[367600364,1750869048474,-460.0,0.0001726,2]
[367600366,1750869048483,-2867.33,0.0001726,2]
[367600368,1750869048493,-690.95,0.0001726,2]
[367600370,1750869048503,-460.0,0.0001726,2]
[367600372,1750869048513,-163.64892511,0.0001726,2]
[367600374,1750869048523,-941.19,0.0001726,2]
[367600376,1750869048532,-464.38,0.0001726,2]
[367600378,1750869048542,-460.0,0.0001726,2]
[367600380,1750869048551,-460.0,0.0001726,2]
[367600382,1750869048561,-557.73,0.0001726,2]
[367600384,1750869048571,-460.0,0.0001726,2]
[367600386,1750869048584,-1086.55,0.0001726,2]
[367600388,1750869048593,-460.0,0.0001726,2]
[367600390,1750869048603,-1783.95,0.0001726,2]
[367600392,1750869048613,-460.0,0.0001726,2]
[367600394,1750869048622,-561.96,0.0001726,2]
[367600396,1750869048632,-460.0,0.0001726,2]
[367600398,1750869048643,-460.0,0.0001726,2]
[367600400,1750869048653,-460.0,0.0001726,2]
[367600402,1750869048662,-2885.03,0.0001726,2]
[367600404,1750869048671,-961.05,0.0001726,2]
[367600406,1750869048681,-466.03,0.0001726,2]
[367600408,1750869048691,-460.0,0.0001726,2]
[367600410,1750869048700,-160.0,0.00017264,2]
[367600412,1750869048710,-524.21181985,0.00017264,2]
[367600414,1750869048719,-160.0,0.00017264,2]
[367600416,1750869048729,-230.22714675,0.00017264,2]
[367600418,1750869048739,-160.0,0.00017264,2]
[367600420,1750869048749,-846.80634355,0.00017264,2]
[367600422,1750869048760,-160.0,0.00017264,2]
[367600424,1750869048770,-160.0,0.00017264,2]
[367600426,1750869048781,-425.18553072,0.00017264,2]
[367600428,1750869048791,-160.0,0.00017264,2]
[367600430,1750869048801,-213.69531788,0.00017264,2]
[367600432,1750869048811,-160.0,0.00017264,2]
[367600434,1750869048821,-12558.06783089,0.00017264,2]
[367600436,1750869048831,-836.86812089,0.00017264,2]
[367600438,1750869048842,-500.0,0.00017295,2]
[367600440,1750869048852,-500.0,0.00017313,2]
[367600442,1750869048862,-500.0,0.00017313,2]
[367600445,1750869048872,-500.0,0.00017317,2]
[367600446,1750869048882,-460.0,0.00017534,2]
[367600449,1750869048892,-460.0,0.00017534,2]
[367600451,1750869048906,-460.0,0.00017534,2]
[367600453,1750869048916,-460.0,0.00017534,2]
[367600455,1750869048926,-151.0,0.00017534,2]
[367600457,1750869048937,-461.55543917,0.00017534,2]
[367600459,1750869048947,-460.0,0.00017534,2]
[367600461,1750869048958,-460.0,0.00017534,2]
[367600463,1750869048968,-460.0,0.00017534,2]
[367600465,1750869048978,-460.0,0.00017534,2]
[367600467,1750869048988,-460.0,0.00017534,2]
[367600469,1750869048998,-460.0,0.00017534,2]
[367600471,1750869049009,-460.0,0.00017534,2]
[367600474,1750869049019,-460.0,0.00017534,2]
[367600476,1750869049029,-553.87,0.00017534,2]
[367600478,1750869049039,-460.0,0.00017534,2]
[367600480,1750869049049,-460.0,0.00017534,2]
[367600482,1750869049059,-460.0,0.00017534,2]
[367600484,1750869049071,-460.0,0.00017534,2]
[367600486,1750869049082,-460.0,0.00017534,2]
[367600488,1750869049092,-460.0,0.00017534,2]
[367600490,1750869049102,-460.0,0.00017534,2]
[367600492,1750869049111,-460.0,0.00017534,2]
[367600494,1750869049122,-789.26,0.00017534,2]
[367600496,1750869049131,-555.96,0.00017534,2]
[367600498,1750869049142,-460.0,0.00017534,2]
[367600500,1750869049152,-460.0,0.00017534,2]
[367600502,1750869049162,-460.0,0.00017534,2]
[367600504,1750869049172,-460.0,0.00017534,2]
[367600507,1750869049183,-460.0,0.00017534,2]
[367600509,1750869049193,-460.0,0.00017534,2]
[367600511,1750869049202,-460.0,0.00017534,2]
[367600513,1750869049213,-460.0,0.00017534,2]
[367600515,1750869049223,-616.1,0.00017534,2]
[367600517,1750869049233,-460.0,0.00017534,2]
[367600519,1750869049244,-460.0,0.00017534,2]
[367600521,1750869049255,-460.0,0.00017534,2]
[367600523,1750869049265,-3865.86,0.00017534,2]
[367600525,1750869049276,-460.0,0.00017534,2]
[367600527,1750869049285,-4605.28,0.00017534,2]
[367600529,1750869049296,-460.0,0.00017534,2]
[367600531,1750869049307,-460.0,0.00017534,2]
[367600533,1750869049317,-4347.37,0.00017534,2]
[367600535,1750869049327,-1034.42,0.00017534,2]
[367600537,1750869049340,-1607.52,0.00017534,2]
[367600539,1750869049351,-460.0,0.00017534,2]
[367600542,1750869049361,-4643.28,0.00017534,2]
[367600544,1750869049372,-1172.11,0.00017534,2]
[367600546,1750869049383,-679.18,0.00017534,2]
[367600548,1750869049394,-460.0,0.00017534,2]
[367600550,1750869049404,-758.82,0.00017534,2]
[367600552,1750869049413,-460.0,0.00017534,2]
[367600554,1750869049428,-460.0,0.00017534,2]
[367600556,1750869049440,-2453.04,0.00017534,2]
[367600558,1750869049450,-460.0,0.00017534,2]
[367600560,1750869049460,-973.42,0.00017534,2]
[367600562,1750869049470,-1249.98,0.00017534,2]
[367600564,1750869049480,-556.18,0.00017534,2]
[367600566,1750869049490,-3350.28,0.00017534,2]
[367600568,1750869049499,-460.0,0.00017534,2]
[367600570,1750869049509,-460.0,0.00017534,2]
[367600572,1750869049519,-500.78,0.00017534,2]
[367600574,1750869049529,-460.0,0.00017534,2]
[367600576,1750869049538,-460.0,0.00017534,2]
[367600578,1750869049549,-460.0,0.00017534,2]
[367600580,1750869049558,-460.0,0.00017534,2]
[367600582,1750869049569,-695.92,0.00017534,2]
[367600584,1750869049579,-2222.53,0.00017534,2]
[367600586,1750869049590,-460.0,0.00017534,2]
[367600588,1750869049599,-977.75,0.00017534,2]
[367600591,1750869049610,-1334.59,0.00017534,2]
[367600593,1750869049620,-546.87,0.00017534,2]
[367600595,1750869049630,-266.03177238,0.00017534,2]
[367600597,1750869049640,-775.28,0.00017534,2]
[367600599,1750869049650,-460.0,0.00017534,2]
[367600601,1750869049660,-460.0,0.00017534,2]
[367600603,1750869049669,-839.84,0.00017534,2]
[367600605,1750869049679,-1467.67,0.00017534,2]
[367600607,1750869049689,-906.85,0.00017534,2]
[367600609,1750869049699,-460.0,0.00017534,2]
[367600611,1750869049709,-1612.36,0.00017534,2]
[367600613,1750869049719,-895.36,0.00017534,2]
[367600615,1750869049728,-460.0,0.00017534,2]
[367600617,1750869049738,-802.68,0.00017534,2]
[367600619,1750869049749,-543.7,0.00017534,2]
[367600622,1750869049759,-460.0,0.00017534,2]
[367600624,1750869049769,-460.0,0.00017534,2]
[367600626,1750869049779,-1353.11,0.00017534,2]
[367600628,1750869049789,-460.0,0.00017534,2]
[367600629,1750869049799,-460.0,0.00017534,2]
[367600630,1750869049809,-1226.09,0.00017534,2]
[367600631,1750869049819,-3375.34,0.00017534,2]
[367600632,1750869049828,-460.0,0.00017534,2]
[367600633,1750869049838,-827.67,0.00017534,2]
[367600635,1750869049848,-460.0,0.00017534,2]
[367600637,1750869049858,-2867.33,0.00017534,2]
[367600639,1750869049868,-690.95,0.00017534,2]
[367600642,1750869049878,-460.0,0.00017534,2]
[367600644,1750869049888,-941.19,0.00017534,2]
[367600646,1750869049898,-464.38,0.00017534,2]
[367600648,1750869049908,-460.0,0.00017534,2]
[367600650,1750869049917,-460.0,0.00017534,2]
[367600652,1750869049927,-1086.55,0.00017534,2]
[367600654,1750869049937,-460.0,0.00017534,2]
[367600656,1750869049948,-1783.95,0.00017534,2]
[367600658,1750869049958,-561.96,0.00017534,2]
[367600660,1750869049968,-460.0,0.00017534,2]
[367600662,1750869049979,-460.0,0.00017534,2]
[367600664,1750869049990,-460.0,0.00017534,2]
[367600666,1750869050001,-2885.03,0.00017534,2]
[367600669,1750869050012,-961.05,0.00017534,2]
[367600670,1750869050022,-466.03,0.00017534,2]
[367600673,1750869050031,-460.0,0.00017534,2]
[367600675,1750869050042,-1000.0,0.00017616,2]
[367600677,1750869050051,-1000.0,0.00017765,2]
[367600679,1750869050061,-460.0,0.00017808,2]
[367600681,1750869050071,-460.0,0.00017808,2]
[367600683,1750869050080,-460.0,0.00017808,2]
[367600685,1750869050090,-460.0,0.00017808,2]
[367600687,1750869050100,-298.57962969,0.00017808,2]
[367600689,1750869050110,-460.0,0.00017808,2]
[367600691,1750869050120,-460.0,0.00017808,2]
[367600693,1750869050129,-460.0,0.00017808,2]
[367600695,1750869050140,-460.0,0.00017808,2]
[367600697,1750869050149,-460.0,0.00017808,2]
[367600699,1750869050159,-460.0,0.00017808,2]
[367600701,1750869050169,-460.0,0.00017808,2]
[367600703,1750869050179,-553.87,0.00017808,2]
[367600705,1750869050189,-460.0,0.00017808,2]
[367600707,1750869050199,-460.0,0.00017808,2]
[367600709,1750869050208,-460.0,0.00017808,2]
[367600711,1750869050218,-523.10577851,0.00017808,2]
[367600714,1750869050228,-316.06441967,0.00017808,2]
[367600716,1750869050238,-460.0,0.00017808,2]
[367600718,1750869050248,-460.0,0.00017808,2]
[367600720,1750869050258,-460.0,0.00017808,2]
[367600723,1750869050276,-789.26,0.00017808,2]
[367600725,1750869050288,-555.96,0.00017808,2]
[367600727,1750869050299,-460.0,0.00017808,2]
[367600729,1750869050309,-460.0,0.00017808,2]
[367600731,1750869050319,-460.0,0.00017808,2]
[367600734,1750869050330,-460.0,0.00017808,2]
[367600736,1750869050344,-460.0,0.00017808,2]
[367600738,1750869050354,-460.0,0.00017808,2]
[367600740,1750869050365,-460.0,0.00017808,2]
[367600742,1750869050375,-460.0,0.00017808,2]
[367600744,1750869050386,-616.1,0.00017808,2]
[367600746,1750869050396,-460.0,0.00017808,2]
[367600748,1750869050406,-460.0,0.00017808,2]
[367600750,1750869050417,-460.0,0.00017808,2]
[367600752,1750869050428,-3865.86,0.00017808,2]
[367600754,1750869050439,-460.0,0.00017808,2]
[367600757,1750869050451,-4605.28,0.00017808,2]
[367600759,1750869050461,-460.0,0.00017808,2]
[367600761,1750869050471,-460.0,0.00017808,2]
[367600763,1750869050481,-4347.37,0.00017808,2]
[367600765,1750869050491,-1034.42,0.00017808,2]
[367600767,1750869050502,-1607.52,0.00017808,2]
[367600769,1750869050511,-460.0,0.00017808,2]
[367600771,1750869050521,-3568.14246085,0.00017808,2]
[367600800,1750869050783,-979.86,0.00017808,2]
[367600802,1750869050797,-95.27753915,0.00017808,2]
[367600804,1750869050809,-357.13491107,0.00017808,2]
[367600826,1750869050823,-504.14295602,0.00017808,2]
[367600855,1750869051260,-460.0,0.00016438,2]
[367600857,1750869051270,-460.0,0.00016712,2]
[367600859,1750869051280,-310.83213291,0.00017808,2]
[367600861,1750869051289,-679.18,0.00017808,2]
[367600863,1750869051299,-597.0842776,0.00017808,2]
[367600866,1750869051310,-161.7357224,0.00017808,2]
[367600868,1750869051320,-460.0,0.00017808,2]
[367600870,1750869051329,-218.2642776,0.00017808,2]
[367600872,1750869051344,-238.9746251,0.00017808,2]
[367600874,1750869051353,-2453.04,0.00017808,2]
[367600876,1750869051363,-460.0,0.00017808,2]
[367600878,1750869051373,-973.42,0.00017808,2]
[367600880,1750869051382,-885.05038745,0.00017808,2]
[367600884,1750869051402,-364.92961255,0.00017808,2]
[367600886,1750869051411,-35.07038745,0.00017808,2]
[367600888,1750869051423,-521.10961255,0.00017808,2]
[367600890,1750869051433,-803.20976775,0.00017808,2]
[367600920,1750869051731,-460.0,0.00016438,2]
[367600921,1750869051742,-460.0,0.00016712,2]
[367600922,1750869051751,-2547.07023225,0.00017808,2]
[367600923,1750869051762,-460.0,0.00017808,2]
[367600924,1750869051771,-460.0,0.00017808,2]
[367600925,1750869051781,-500.78,0.00017808,2]
[367600926,1750869051791,-460.0,0.00017808,2]
[367600927,1750869051801,-460.0,0.00017808,2]
[367600928,1750869051810,-460.0,0.00017808,2]
[367600929,1750869051820,-287.23112669,0.00017808,2]
[367600950,1750869052157,-460.0,0.00016438,2]
[367600952,1750869052168,-158.41132676,0.00016712,2]
[367601148,1750869062213,5000.0,0.00016,2]
[367601149,1750869127372,498.95,0.00025324,120]
[367601150,1750869149811,500.0,0.00025324,120]
[367601151,1750869185025,-984.81359322,0.00024,60]
[367601152,1750869244256,5000.0,0.00016,2]
[367601154,1750869426128,433.87800716,0.00016,2]
[367601156,1750869570498,171.362675,0.00013699,2]
[367601158,1750869749682,5221.73848937,0.00015438,2]
[367601159,1750869749706,4778.26151063,0.00015438,2]
[367601160,1750869881538,300.7769209,0.00015437,2]
[367601161,1750870069301,156.20177956,0.000222,69]
[367601179,1750870232673,-280.36940009,0.00016338,2]
[367601180,1750870232685,-343.09196245,0.00016338,2]
[367601181,1750870232695,-300.0,0.00016427,2]
[367601182,1750870232704,-300.0,0.00016427,2]
[367601183,1750870232717,-785.13,0.00016428,3]
[367601184,1750870232729,-565.83,0.00016428,3]
[367601185,1750870232739,-282.91,0.00016428,3]
[367601186,1750870232749,-848.77,0.00016428,3]
[367601187,1750870232758,-519.79,0.00016428,3]
[367601188,1750870232768,-779.72,0.00016428,3]
[367601189,1750870232777,-230.84,0.00016428,3]
[367601190,1750870232788,-230.26329876,0.00016437,2]
[367601191,1750870232797,-500.0,0.00016437,2]
[367601192,1750870232807,-422.37206754,0.00016437,2]
[367601193,1750870232816,-500.0,0.00016437,2]
[367601194,1750870232825,-500.0,0.00016437,2]
[367601195,1750870232835,-500.0,0.00016437,2]
[367601196,1750870232844,-500.0,0.00016437,2]
[367601197,1750870232853,-500.0,0.00016437,2]
[367601198,1750870232863,-500.0,0.00016437,2]
[367601199,1750870232873,-500.0,0.00016437,2]
[367601200,1750870232882,-500.0,0.00016437,2]
[367601201,1750870232892,-500.0,0.00016437,2]
[367601202,1750870232902,-500.0,0.00016437,2]
[367601203,1750870232911,-500.0,0.00016437,2]
[367601204,1750870232920,-500.0,0.00016437,2]
[367601205,1750870232929,-500.0,0.00016437,2]
[367601206,1750870232938,-196.83761209,0.00016437,2]
[367601207,1750870232947,-500.0,0.00016437,2]
[367601208,1750870232956,-500.0,0.00016437,2]
[367601209,1750870232965,-650.0,0.00016437,2]
[367601210,1750870232976,-218.117,0.00016437,2]
[367601211,1750870232985,-500.0,0.00016437,2]
[367601212,1750870232994,-162.22238787,0.00016437,2]
[367601213,1750870233007,-464.87896279,0.00016437,2]
[367601214,1750870233016,-500.0,0.00016437,2]
[367601215,1750870233026,-500.0,0.00016437,2]
[367601216,1750870233036,-197.32915028,0.00016437,2]
[367601217,1750870233046,-460.0,0.00016438,2]
[367601218,1750870233056,-460.0,0.00016438,2]
[367601219,1750870233066,-420.0,0.00016438,2]
[367601220,1750870233075,-460.0,0.00016438,2]
[367601221,1750870233085,-460.0,0.00016438,2]
[367601222,1750870233095,-460.0,0.00016438,2]
[367601223,1750870233105,-460.0,0.00016438,2]
[367601224,1750870233114,-460.0,0.00016438,2]
[367601225,1750870233123,-460.0,0.00016438,2]
[367601226,1750870233133,-509.57061595,0.00016438,2]
[367601227,1750870233142,-547.35168835,0.00016438,2]
[367601228,1750870233152,-380.97274341,0.00016438,2]
[367601229,1750870233162,-460.0,0.00016438,2]
[367601230,1750870233171,-508.66445798,0.00016438,2]
[367601231,1750870233181,-460.0,0.00016438,2]
[367601232,1750870233191,-460.0,0.00016438,2]
[367601233,1750870233201,-460.0,0.00016438,2]
[367601234,1750870233211,-460.0,0.00016438,2]
[367601235,1750870233220,-158.91829845,0.00016438,2]
[367601236,1750870233233,-460.0,0.00016438,2]
[367601237,1750870233242,-460.0,0.00016438,2]
[367601238,1750870233252,-460.0,0.00016438,2]
[367601239,1750870233262,-460.0,0.00016438,2]
[367601240,1750870233271,-460.0,0.00016438,2]
[367601241,1750870233281,-442.55786897,0.00016438,2]
[367601242,1750870233291,-460.0,0.00016438,2]
[367601243,1750870233300,-460.0,0.00016438,2]
[367601244,1750870233310,-500.0,0.00016438,2]
[367601245,1750870233320,-500.0,0.00016438,2]
[367601246,1750870233329,-500.0,0.00016438,2]
[367601247,1750870233339,-263.29196358,0.00016438,2]
[367601248,1750870233348,-460.0,0.00016438,2]
[367601249,1750870233358,-464.19197366,0.00016438,2]
[367601250,1750870233367,-460.0,0.00016438,2]
[367601251,1750870233378,-460.0,0.00016438,2]
[367601252,1750870233387,-460.0,0.00016438,2]
[367601253,1750870233396,-1000.0,0.00016438,2]
[367601254,1750870233406,-460.0,0.00016438,2]
[367601255,1750870233415,-460.0,0.00016438,2]
[367601256,1750870233425,-460.0,0.00016438,2]
[367601257,1750870233434,-540.39484939,0.00016438,2]
[367601258,1750870233443,-460.0,0.00016438,2]
[367601259,1750870233453,-460.0,0.00016438,2]